Cogmind - Beta 14 @@@ ROGUE MODE // 2025.03.04 @ 17:04:10 Player: UberDoot Result: Destroyed by B-75 Beast with Heavy Plasma Cannon Performance ------------- Evolutions (3) 1500 Regions Visited (9) 1800 Robots Destroyed (143) 715 Value Destroyed (4645) 4645 Prototype IDs (26) 520 Alien Tech Used (0) 0 Bonus (-344) -344 TOTAL SCORE: 8836 Bonus ------- High Alert Combat Kills 92 Met Data Miner 300 Friendly Fire -736 Cogmind --------- Core Integrity 0/700 Matter 300/300 Energy 100/100 System Corruption 8% Temperature Cool (12) Movement Core (100) Ox1 Location -6/Proximity Caves Parts ------- > --- POWER (2) -------- (None) > --- PROPULSION (4) --- (None) > --- UTILITY (4) ------ Armored Scrap Engine > --- WEAPON (3) ------- Ripper > --- INVENTORY (5) ---- Makeshift Microdissipator Network Hardened Light Armor Plating Improved Shield Generator Remote Datajack Peak State ------------ > --- POWER ------------ Nuclear-Angular Core > --- PROPULSION ------- Aluminum Exoskeleton > --- UTILITY ---------- Armored Scrap Engine Large Storage Unit Medium Reactive Plating > --- WEAPON ----------- Heavy Missile Launcher Hvy. Electro Scrap Construct/C > --- INVENTORY -------- Cooling System Cooling System Makeshift Microdissipator Network Makeshift Microdissipator Network High-capacity Storage Unit Advanced Targeting Computer Weapon Cycler Improved Medium Armor Plating Insulated Plating Improved Shield Generator High-powered Tractor Beam Precision Grenade Launcher Remote Datajack Great Maul [Rating: 57] Favorites ----------- Power Constructs Engine Improved Ion Engine Power Core Constructs Propulsion Light Treads Treads Light Treads Leg Constructs Wheel Compact Wheel Utility Large Storage Unit Device Armored Scrap Engine Storage Large Storage Unit Processor Makeshift Salvage Targeting Computer Protection Hardened Medium Armor Plating Weapon Flak Cannon Energy Gun Small Laser Energy Cannon Constructs Ballistic Gun Improved Assault Rifle Ballistic Cannon Flak Cannon Launcher Heavy Missile Launcher Impact Weapon Great Maul Slashing Weapon Ripper Build | -11 -10 -9 -9 -9 -7 -7 -7 -7 -6 ------- Run | Yrd Mat Mat Sto Rec Fac Low Low Dat Pro Slots Evolved 6 | . . 2 . . 4 . . . . Power 1 | . . . . . 1 . . . . Propulsion 2 | . . 1 . . 1 . . . . Utility 2 | . . . . . 2 . . . . Weapon 1 | . . 1 . . . . . . . Parts Attached 100 | 7 10 25 20 2 15 11 7 . 3 Power 4 | 1 . 1 2 . . . . . . Engine 4 | 1 . 1 2 . . . . . . Core . | . . . . . . . . . . Reactor . | . . . . . . . . . . Propulsion 19 | 2 3 9 3 2 . . . . . Treads 17 | 2 2 8 3 2 . . . . . Leg . | . . . . . . . . . . Wheel 2 | . 1 1 . . . . . . . Hover . | . . . . . . . . . . Flight . | . . . . . . . . . . Utility 32 | 2 3 5 5 . 7 7 1 . 2 Device 17 | 1 2 3 2 . 5 3 . . 1 Storage 2 | 1 1 . . . . . . . . Processor 1 | . . . . . . . 1 . . Hackware . | . . . . . . . . . . Protection 12 | . . 2 3 . 2 4 . . 1 Artifact . | . . . . . . . . . . Weapon 45 | 2 4 10 10 . 8 4 6 . 1 Energy Gun 10 | 2 1 2 . . 3 . 2 . . Energy Cannon 2 | . . . 1 . 1 . . . . Ballistic Gun 6 | . . 2 4 . . . . . . Ballistic Cannon 6 | . . 4 2 . . . . . . Launcher 9 | . 3 . . . 2 2 2 . . Special Weapon . | . . . . . . . . . . Impact Weapon 11 | . . 2 3 . 2 2 2 . . Slashing Weapon 1 | . . . . . . . . . 1 Piercing Weapon . | . . . . . . . . . . Special Melee Weapon . | . . . . . . . . . . Unidentified Prototypes 7 | . . 2 1 . 4 . . . . Parts Lost 25 | . 4 1 . . 1 4 7 . 8 Power 5 | . . 1 . . . . 2 . 2 Propulsion 7 | . 1 . . . 1 2 1 . 2 Utility 4 | . . . . . . 1 1 . 2 Weapon 9 | . 3 . . . . 1 3 . 2 Highest Loss Streak 6 | . 2 1 . . 1 3 6 . 6 To Critical Strikes . | . . . . . . . . . . Average Slot Usage (%) 69 | . 87 97 99 100 55 51 43 53 49 Engine 6 | . 14 10 11 11 4 . 1 . 4 Core 2 | . . . . . 2 7 2 7 2 Treads 14 | . 22 31 33 33 8 . . . . Leg 2 | . . . . . . 6 2 7 6 Device 8 | . 8 10 5 . 10 10 7 7 11 Storage 9 | . 18 11 11 11 7 7 7 7 6 Processor 1 | . . . . . . . 6 7 2 Protection 2 | . . . 5 11 4 2 . . . Energy Gun 1 | . 15 1 . . 2 . . . . Energy Cannon 2 | . . . 1 . 6 . 3 7 6 Ballistic Gun 3 | . . 10 10 11 . . . . . Ballistic Cannon 8 | . . 19 20 22 2 5 . . . Impact Weapon 3 | . . . . . 2 6 6 7 6 Peak Build Rating 57 | 8 8 22 21 23 50 57 51 47 49 Average Rating 32 | 5 7 18 19 21 41 51 41 47 43 On Entrance 26 | . 8 6 19 21 23 46 45 47 47 Naked Turns . | . . . . . . . . . . Heaviest Build 64 | 11 31 50 50 50 51 64 60 42 52 Greatest Support 66 | 40 40 66 60 60 60 60 20 14 14 Greatest Overweight (x) 11 | . 1 3 . . 6 2 11 2 7 Average Overweight (x) 1 | . . . . . 1 . 4 2 3 Largest Inventory Capacity 15 | 8 15 15 15 15 15 15 15 15 15 Average Capacity 14 | 7 14 15 15 15 15 15 15 15 13 Most Carried 15 | 8 11 15 15 15 15 15 15 13 13 Average Carried 13 | 4 8 14 14 14 14 14 12 13 11 Final Capacity 15 | 8 15 15 15 15 15 15 15 15 5 Final Carried 15 | 8 11 15 15 15 15 15 13 13 4 Scrap Engine Consumption 72 | . . . . . 40 11 18 . 3 Constructs Created 6 | . . . . . 3 . 3 . . Constructs Modified 23 | . . . . . 11 4 5 . 3 Class Distribution -------------------- 41% | Construct 24% | Mutant 14% | Scavenger-Tank 9% | Gunner 9% | Scavenger-Gunner Dominant Class ---------------- Mutant | -10/Materials Gunner | -9/Materials Scavenger-Gunner | -9/Storage Scavenger-Tank | -9/Recycling Construct | -7/Factory Construct | -7/Lower Caves Mutant | -7/Lower Caves Construct | -7/Data Miner Construct | -6/Proximity Caves Resources | -11 -10 -9 -9 -9 -7 -7 -7 -7 -6 ----------- Run | Yrd Mat Mat Sto Rec Fac Low Low Dat Pro Matter Collected 3728 | 220 205 791 778 277 520 394 354 . 189 Remotely . | . . . . . . . . . . Salvage Created 4952 | 126 399 768 871 351 1321 486 271 . 359 Parts 232 | 10 25 54 64 20 28 14 15 . 2 Haulers Intercepted 9 | . 1 3 5 . . . . . . Recyclers Shooed 2 | . . . 2 . . . . . . Parts Field Recycled . | . . . . . . . . . . Retrieved Matter . | . . . . . . . . . . Parts Self-Destructed 15 | . . . . . . 9 5 . 1 Prevented 2 | . . . . . . . 2 . . Kills | -11 -10 -9 -9 -9 -7 -7 -7 -7 -6 ------- Run | Yrd Mat Mat Sto Rec Fac Low Low Dat Pro Combat Hostiles Destroyed 105 | . 12 19 18 6 23 13 11 . 3 Melee 1 | . . . . . . 1 . . . Guns 17 | . 6 4 4 1 2 . . . . Cannons 53 | . . 13 14 5 9 4 6 . 2 AOE 18 | . 6 2 . . . 8 2 . . Classes Destroyed 17 | 3 6 1 1 1 3 2 . . . Worker 6 | 1 . 3 1 . 1 . . . . Builder 2 | . . . 1 . 1 . . . . Tunneler 2 | 2 . . . . . . . . . Hauler 9 | . 1 3 5 . . . . . . Recycler 5 | 1 . . 1 . 3 . . . . Mechanic 2 | . 1 . . . 1 . . . . Operator 3 | . 1 . 2 . . . . . . Watcher 8 | . 2 2 1 . 3 . . . . Swarmer 20 | . 3 6 . . 3 1 7 . . Grunt 46 | . 9 6 8 . 11 6 3 . 3 Brawler 2 | . . . . . 1 1 . . . Duelist 3 | . . . . . 1 1 1 . . Sentry 24 | . . 7 10 3 2 2 . . . Programmer 7 | . . . . . 5 2 . . . Scrapper 3 | . . . . 3 . . . . . Decomposer 1 | . . . . . . . . . 1 Packrat 1 | . . . . . . . . . 1 Samaritan 1 | . . . . . . 1 . . . Tinkerer 2 | . . . . . . 1 1 . . Savage 1 | . . . . . . . 1 . . Best Kill Streak 7 | 3 7 4 4 2 5 6 4 . 2 Combat Bots Only 6 | . 5 3 3 2 5 6 4 . 2 Max Kills in Single Turn 3 | 1 3 2 1 1 2 2 1 . 1 Gunslinging . | . . . . . . . . . . Exploded 2 | . 2 1 . . . 2 1 . . Melee 1 | . . . . . . 1 . . . Uniques/NPCs Destroyed . | . . . . . . . . . . Combat | -11 -10 -9 -9 -9 -7 -7 -7 -7 -6 -------- Run | Yrd Mat Mat Sto Rec Fac Low Low Dat Pro Hostile Shots Fired 641 | . 77 57 46 9 152 80 133 . 87 Missed 189 | . 19 14 13 2 54 30 35 . 22 Damage Taken 7088 | . 774 517 444 196 1225 863 1659 . 1410 Core 1007 | . 210 64 14 18 88 55 242 . 316 Absorbed by Shields . | . . . . . . . . . . Ignored by Resistances 18 | . . . . . . 18 . . . Regen/Repaired (Parts) 1292 | . . . 127 . 480 138 418 . 129 Core Remaining (%) 64 | 100 16 . . 76 . . . . . Volleys Fired 351 | 9 42 36 48 8 91 44 29 . 44 Largest 3 | 2 2 3 3 3 2 2 2 . 1 Hottest 135 | 80 80 111 135 111 122 81 100 . 49 Shots Fired 610 | 18 73 97 142 24 132 46 34 . 44 Gun 225 | 18 66 37 48 8 38 . 10 . . Cannon 366 | . . 60 94 16 94 38 20 . 44 Launcher 19 | . 7 . . . . 8 4 . . Special . | . . . . . . . . . . Kinetic 287 | . . 91 134 24 . 38 . . . Thermal 222 | 18 54 . 8 . 132 . 10 . . Explosive 19 | . 7 . . . . 8 4 . . Electromagnetic 82 | . 12 6 . . . . 20 . 44 Robot Hit Streak 22 | 10 15 10 17 10 17 22 9 . 14 Robot Miss Streak 8 | 1 1 6 5 5 8 4 2 . 2 Penetration Max . | . . . . . . . . . . Secondary Targets 1 | . 1 . . . . . . . . Max Gunslinging Chain 1 | . 1 . . . . . . . . Shots Hit Robots 482 | 15 58 68 100 16 108 49 29 . 39 Core Hits 385 | 5 33 68 86 18 104 46 14 . 11 Critical Kills 1 | . . . 1 . . . . . . Critical Parts Destroyed 1 | . . . . . . . 1 . . Critical Strikes 3 | . . . 1 . . . 2 . . Burn 1 | . . . . . . . 1 . . Destroy 1 | . . . 1 . . . . . . Smash 1 | . . . . . . . 1 . . Melee Attacks 52 | . . 2 4 . 8 16 14 . 8 Impact 49 | . . 2 4 . 8 16 14 . 5 Slashing 3 | . . . . . . . . . 3 Piercing . | . . . . . . . . . . Sneak Attacks 3 | . . . 1 . . 1 1 . . Combat Hostiles . | . . . . . . . . . . Follow-up Attacks . | . . . . . . . . . . Damage Inflicted 11380 | 162 1432 1267 2011 286 2028 2277 1261 . 656 Guns 2356 | 162 616 392 505 113 417 . 151 . . Cannons 5769 | . . 788 1400 171 1607 714 472 . 617 Explosions 2340 | . 816 87 . . . 1058 379 . . Melee 907 | . . . 104 . . 505 259 . 39 Ramming 8 | . . . 2 2 4 . . . . Kinetic 3901 | . . 1104 1799 284 . 714 . . . Thermal 3050 | 162 520 87 106 . 2024 . 151 . . Explosive 2214 | . 777 . . . . 1058 379 . . Electromagnetic 1300 | . 135 76 . . . . 472 . 617 Impact 907 | . . . 104 . . 505 259 . 39 Slashing . | . . . . . . . . . . Piercing . | . . . . . . . . . . Highest Corruption 8 | . . . . 1 2 8 8 8 8 Average Corruption 4 | . . . . 1 1 2 8 8 8 Corruption Purged 1 | . . . . . 1 . . . . Corruption Blocked . | . . . . . . . . . . Effects 150 | . . . . 2 13 26 70 4 35 Message Errors 31 | . . . . . 5 6 14 3 3 Matter Fused 50 | . . . . 1 4 12 18 1 14 Heat Flow Errors 18 | . . . . . 1 1 6 . 10 Energy Discharges 18 | . . . . . 1 4 9 . 4 Parts Fused 1 | . . . . . . . . . 1 Data Loss (minor) 19 | . . . . 1 1 1 14 . 2 Data Loss (major) 8 | . . . . . . 1 6 . 1 Alerts 5 | . . . . . 1 1 3 . . Overload Shots . | . . . . . . . . . . Overflow Damage 423 | . 45 . 64 . 19 162 115 . 18 Projectiles 52 | . . . . . 19 . 15 . 18 Explosions 72 | . 45 . . . . . 27 . . Melee 299 | . . . 64 . . 162 73 . . Knockbacks 36 | . . 8 19 . . 7 2 . . Impact 5 | . . . . . . 3 2 . . Kinetic 29 | . . 8 17 . . 4 . . . Secondary 2 | . . . 2 . . . . . . Self-Inflicted Damage 262 | . 87 44 . . . . 131 . . Shots 9 | . 5 1 . . . . 3 . . Rammed 4 | . . . 1 1 2 . . . . Targets Rammed 4 | . . . 1 1 2 . . . . Kicked . | . . . . . . . . . . Crushed . | . . . . . . . . . . Highest Temperature 409 | 90 152 366 332 144 315 290 352 . 409 Average Temperature 81 | 35 55 69 74 62 64 108 126 . 129 Received Heat Transfer 1983 | . 378 135 198 60 321 171 387 . 333 Effects 5 | . . . . . . 1 4 . . Energy Bleed 1 | . . . . . . . 1 . . Interference 3 | . . . . . . 1 2 . . Damage (minor) 1 | . . . . . . . 1 . . Siege Activations . | . . . . . . . . . . Robots Corrupted 7 | . . . 1 . . 1 3 . 2 Combat Hostiles 5 | . . . . . . . 3 . 2 Parts Fried 4 | . 1 . 1 . . 1 . . 1 Impact Corruptions 15 | . . . 3 . . 10 2 . . Robots Melted 14 | . . . . . 14 . . . . Combat Hostiles 12 | . . . . . 12 . . . . Parts Melted 55 | . 4 . . 1 46 . 4 . . Heat Transferred 13052 | 375 1150 100 185 . 10835 . 407 . . Parts Sabotaged . | . . . . . . . . . . Parts Stolen . | . . . . . . . . . . Parts Stripped . | . . . . . . . . . . Power Chain Reactions 3 | . 1 2 . . . . . . . Alert | -11 -10 -9 -9 -9 -7 -7 -7 -7 -6 ------- Run | Yrd Mat Mat Sto Rec Fac Low Low Dat Pro Peak Influence 498 | 20 317 210 498 207 479 . . . . Initial 163 | . 13 15 42 163 67 . . . . Average 150 | 6 138 87 233 81 205 . . . . Maximum Alert Level 2 | . 1 1 2 1 2 . . . . Low Security (%) 74 | 100 92 93 51 88 56 . . . . Level 1 19 | . 7 6 35 11 30 . . . . Level 2 5 | . . . 13 . 12 . . . . Level 3 . | . . . . . . . . . . Level 4 . | . . . . . . . . . . Level 5 . | . . . . . . . . . . High Security . | . . . . . . . . . . Max Security . | . . . . . . . . . . Squads Dispatched 11 | . 2 1 2 . 6 . . . . Investigation . | . . . . . . . . . . Extermination 5 | . . . . . 5 . . . . Reinforcement 6 | . 2 1 2 . 1 . . . . Assault . | . . . . . . . . . . Garrison . | . . . . . . . . . . Intercept . | . . . . . . . . . . Searches Triggered . | . . . . . . . . . . Construction Impeded . | . . . . . . . . . . Haulers Reinforced . | . . . . . . . . . . Active Scanning Responses . | . . . . . . . . . . Cargo Convoy Interrupts . | . . . . . . . . . . Stealth | -11 -10 -9 -9 -9 -7 -7 -7 -7 -6 --------- Run | Yrd Mat Mat Sto Rec Fac Low Low Dat Pro Distress Signals 11 | . 4 3 4 . . . . . . Communications Jammed . | . . . . . . . . . . Distress Signals . | . . . . . . . . . . Times Spotted 145 | . 18 27 26 4 38 13 13 . 6 Peak Tracking Total 7 | . 7 5 3 4 7 7 4 . 3 Tactical Retreats 13 | . 2 . 2 . 3 . 4 . 2 Traps | -11 -10 -9 -9 -9 -7 -7 -7 -7 -6 ------- Run | Yrd Mat Mat Sto Rec Fac Low Low Dat Pro Traps Triggered . | . . . . . . . . . . Indirectly . | . . . . . . . . . . Trap Hack Attempts . | . . . . . . . . . . Triggered . | . . . . . . . . . . Disarmed . | . . . . . . . . . . Reprogrammed . | . . . . . . . . . . Reused . | . . . . . . . . . . Traps Extracted . | . . . . . . . . . . Installed . | . . . . . . . . . . Triggered 3 | . . . . . . 1 2 . . Machines | -11 -10 -9 -9 -9 -7 -7 -7 -7 -6 ---------- Run | Yrd Mat Mat Sto Rec Fac Low Low Dat Pro Machines Disabled 3 | . . . 1 . 1 1 . . . Max in Single Turn 1 | . . . 1 . 1 1 . . . Garrison Access 1 | . . . 1 . . . . . . Machines Repaired . | . . . . . . . . . . Machines Dismantled . | . . . . . . . . . . Machines Sabotaged . | . . . . . . . . . . Overloaded Fab Kills . | . . . . . . . . . . Hacking | -11 -10 -9 -9 -9 -7 -7 -7 -7 -6 --------- Run | Yrd Mat Mat Sto Rec Fac Low Low Dat Pro Machines Accessed 45 | . 2 6 10 9 11 2 1 4 . Terminals 27 | . 1 6 7 6 7 . . . . Fabricators 1 | . . . . . 1 . . . . Repair Stations 4 | . 1 . 2 . 1 . . . . Recycling Units 2 | . . . . 2 . . . . . Scanalyzers 1 | . . . . . 1 . . . . Garrison Access 2 | . . . 1 . 1 . . . . Total Hacks 127 | . 5 17 25 21 25 2 1 31 . Successful 80 | . 2 9 16 11 8 2 1 31 . Failed 46 | . 3 7 9 10 17 . . . . Catastrophic 3 | . . 1 1 1 . . . . . Database Lockouts 1 | . . 1 . . . . . . . Manual 49 | . 3 12 13 16 5 . . . . Terminals 70 | . 3 17 15 17 18 . . . . Fabricators 1 | . . . . . 1 . . . . Repair Stations 13 | . 2 . 9 . 2 . . . . Recycling Units 2 | . . . . 2 . . . . . Scanalyzers 2 | . . . . . 2 . . . . Garrison Access 3 | . . . 1 . 2 . . . . Terminal Hacks 51 | . . 7 3 4 3 2 1 31 . Record 11 | . . . . . . . . 11 . Part Schematic 12 | . . 1 . . . . . 11 . Robot Schematic 6 | . . . . . . . . 6 . Robot Analysis 1 | . . 1 . . . . . . . Prototype ID Bank 6 | . . 2 . 1 . . . 3 . Open Door 4 | . . . 1 . . 2 1 . . Branch Access Points 2 | . . 1 . . 1 . . . . Terminal Index 3 | . . . 1 1 1 . . . . Unreport Threat 1 | . . 1 . . . . . . . Locate Traps 1 | . . . . . 1 . . . . Hauler Manifests 1 | . . . 1 . . . . . . Zone Layout 1 | . . 1 . . . . . . . Release Object 2 | . . . . 2 . . . . . Fabricator Hacks . | . . . . . . . . . . Repair Station Hacks 8 | . 1 . 6 . 1 . . . . Scan Component 6 | . 1 . 4 . 1 . . . . Repair 2 | . . . 2 . . . . . . Recycling Unit Hacks 2 | . . . . 2 . . . . . Retrieve Components 2 | . . . . 2 . . . . . Scanalyzer 2 | . . . . . 2 . . . . Insert Component 1 | . . . . . 1 . . . . Analyze 1 | . . . . . 1 . . . . Garrison Access Hacks 1 | . . . 1 . . . . . . Seal Access 1 | . . . 1 . . . . . . Unauthorized Hacks 16 | . 1 2 6 5 2 . . . . Terminals 16 | . 1 2 6 5 2 . . . . Botnet 7 | . 1 2 1 1 2 . . . . Skim 9 | . . . 5 4 . . . . . Fabricators . | . . . . . . . . . . Repair Stations . | . . . . . . . . . . Recycling Units . | . . . . . . . . . . Scanalyzers . | . . . . . . . . . . Garrison Access . | . . . . . . . . . . Data Cores Recovered 2 | . . . 2 . . . . . . Used . | . . . . . . . . . . Hacking Detections 28 | . 2 4 6 6 10 . . . . Full Trace Events 1 | . . . . 1 . . . . . Feedback Events 1 | . . . . 1 . . . . . Corruption 1 | . . . . 1 . . . . . Feedback Blocked . | . . . . . . . . . . Robot Schematics Acquired 6 | . . . . . . . . 6 . Robots Built . | . . . . . . . . . . Authchips . | . . . . . . . . . . Time . | . . . . . . . . . . Total Robot Build Rating . | . . . . . . . . . . Part Schematics Acquired 13 | . . 1 . . 1 . . 11 . Parts Built . | . . . . . . . . . . Authchips . | . . . . . . . . . . Time . | . . . . . . . . . . Total Part Build Rating . | . . . . . . . . . . Parts Repaired 2 | . . . 2 . . . . . . Time 64 | . . . 64 . . . . . . Parts Recycled . | . . . . . . . . . . Recycled Matter . | . . . . . . . . . . Retrieved Matter . | . . . . . . . . . . Retrieved Components 3 | . . . . 3 . . . . . Parts Scanalyzed 1 | . . . . . 1 . . . . Part Schematics Acquired 1 | . . . . . 1 . . . . Parts Damaged . | . . . . . . . . . . Bothacking | -11 -10 -9 -9 -9 -7 -7 -7 -7 -6 ------------ Run | Yrd Mat Mat Sto Rec Fac Low Low Dat Pro Used RIF Installer . | . . . . . . . . . . Robots Hacked . | . . . . . . . . . . Non-combat . | . . . . . . . . . . Combat . | . . . . . . . . . . Robot Hacks Applied . | . . . . . . . . . . Relay Couplers Released . | . . . . . . . . . . Fabnet Peak Effective % . | . . . . . . . . . . Robots Rewired 2 | . . . . . . 2 . . . Allies Hacked . | . . . . . . . . . . Hacks Repelled . | . . . . . . . . . . Allies | -11 -10 -9 -9 -9 -7 -7 -7 -7 -6 -------- Run | Yrd Mat Mat Sto Rec Fac Low Low Dat Pro Total Allies 3 | . . . . . . 2 . . 1 Largest Group 2 | . . . . . . 2 . . 1 Highest-Rated Group 96 | . . . . . . 32 . . 96 Highest-Rated Ally 96 | . . . . . . 16 . . 96 Total Orders . | . . . . . . . . . . Ally Attacks 22 | . . . . . . 4 . . 18 Total Damage 882 | . . . . . . 68 . . 814 Kills . | . . . . . . . . . . Allies Corrupted . | . . . . . . . . . . Allies Melted . | . . . . . . . . . . Intel | -11 -10 -9 -9 -9 -7 -7 -7 -7 -6 ------- Run | Yrd Mat Mat Sto Rec Fac Low Low Dat Pro Robot Analysis Total 1 | . . 1 . . . . . . . Derelict Logs Recovered 4 | . . . . . . 2 1 . 1 Drone Launches . | . . . . . . . . . . Drone Recoveries . | . . . . . . . . . . Exploration | -11 -10 -9 -9 -9 -7 -7 -7 -7 -6 ------------- Run | Yrd Mat Mat Sto Rec Fac Low Low Dat Pro Turns Passed 12085 | 182 806 1795 1289 1057 2053 1609 2051 156 1087 Spaces Moved 6029 | 87 345 924 563 598 1282 1214 611 78 327 Core 225 | 3 . . . . . . 157 . 65 Treads 3646 | 84 307 769 563 598 1282 43 . . . Legs 1797 | . . . . . . 1171 286 78 262 Wheels 193 | . 38 155 . . . . . . . Hover 168 | . . . . . . . 168 . . Flight . | . . . . . . . . . . Fastest Speed 50 | 50 115 120 160 160 105 90 105 202 100 Average Speed 160 | 156 169 155 160 160 117 97 313 202 281 Slowest Speed 600 | 160 240 240 160 160 180 120 600 202 527 Overloaded Moves . | . . . . . . . . . . Propulsion Burnouts . | . . . . . . . . . . Robots Hopped . | . . . . . . . . . . Cave-ins Triggered . | . . . . . . . . . . Exploration Rate (%) 55 | 6 39 60 83 74 26 87 66 68 49 Regions Visited 9 Branch Regions 6 Pre-discovered Areas 6 | . . . 4 . . . 1 1 . Known Exits Taken 3 | . . 1 1 . 1 . . . . Unknown Exits Taken 6 | 1 1 . . 1 . 1 1 1 . Scrap Searched 6 | . . . . . . 4 2 . . Spaces Dug 44 | . 14 2 2 . 5 7 7 . 7 Terrain Destroyed 226 | . 31 13 2 . 5 105 63 . 7 Melee 30 | . . 2 2 . 5 7 7 . 7 Projectile . | . . . . . . . . . . AOE 196 | . 31 11 . . . 98 56 . . Terrain Rammed . | . . . . . . . . . . Walls Destroyed . | . . . . . . . . . . Machines Disabled . | . . . . . . . . . . Actions | -11 -10 -9 -9 -9 -7 -7 -7 -7 -6 --------- Run | Yrd Mat Mat Sto Rec Fac Low Low Dat Pro Total 7782 | 112 494 1214 837 683 1693 1553 685 77 434 Wait 1070 | 2 85 177 181 66 253 239 16 . 51 Move 6020 | 86 344 923 562 597 1281 1213 610 77 327 Hop . | . . . . . . . . . . Pick Up 62 | 8 6 19 8 3 13 3 2 . . Fast Attach 36 | 7 1 14 2 . 7 1 3 . 1 Attach 18 | . 6 . 2 . 3 2 3 . 2 Detach 20 | . 5 3 . . 7 1 3 . 1 Swap 46 | . 3 11 16 2 5 8 1 . . Drop 80 | . 2 29 13 6 23 3 4 . . Fire 351 | 9 42 36 48 8 91 44 29 . 44 Melee 52 | . . 2 4 . 8 16 14 . 8 Ram . | . . . . . . . . . . Kick . | . . . . . . . . . . Crush 4 | . . . 1 1 2 . . . . Escape Stasis . | . . . . . . . . . . Rewire 23 | . . . . . . 23 . . . Trap . | . . . . . . . . . . Miscellaneous . | . . . . . . . . . . Route ------- -11/Scrapyard -10/Materials -9/Materials (discovered 3 exits: [*Mat] / *Min / *Sto) -9/Storage -9/Recycling -7/Factory (discovered 2 exits: *Low x2) -7/Lower Caves -7/Lower Caves (discovered 2 exits: [*Fac] / *Dat) -7/Data Miner -6/Proximity Caves History --------- Turn | Location | Event 6 | -11/Scrapyard | Discovered new exit (range 16) 183 | -11/Scrapyard | Entered Materials 309 | -10/Materials | Build established: Mutant 523 | -10/Materials | Core integrity fell below 50% 629 | -10/Materials | Discovered new exit (range 16) 725 | -10/Materials | Core integrity fell below 20% 989 | -10/Materials | Entered another Materials area 989 | -9/Materials | Evolved 2 slots: Propulsion x1, Weapon x1 1353 | -9/Materials | Discovered new exit (range 15) 1521 | -9/Materials | Build established: Gunner 1689 | -9/Materials | Identified exit to Mines 1689 | -9/Materials | Identified exit to Storage 1905 | -9/Materials | Discovered new exit (range 16) 1906 | -9/Materials | Central database locked down 2616 | -9/Materials | Build established: Scavenger-Gunner 2784 | -9/Materials | Entered Storage 3083 | -9/Storage | Repaired Grenade Launcher 3560 | -9/Storage | Learned Materials trap positions 3737 | -9/Storage | Build established: Scavenger-Tank 3762 | -9/Storage | Learned location of 3 exits from Materials 3880 | -9/Storage | Loaded intel: 24 trap records 3918 | -9/Storage | Learned 4 Recycling zone layouts 3968 | -9/Storage | Identified exit to Recycling 4048 | -9/Storage | Repaired Flak Cannon 4067 | -9/Storage | Used back door to open Recycling access 4073 | -9/Storage | Entered Recycling 4074 | -9/Recycling | Identified exit to Scraptown 4920 | -9/Recycling | Discovered new exit (range 12) 4988 | -9/Recycling | Scanned before Scraplab entrance 5000 | -9/Recycling | Angered Scraplab inhabitants 5080 | -9/Recycling | Found Prototype Device 5130 | -9/Recycling | Entered Factory 5130 | -7/Factory | Evolved 4 slots: Power x1, Propulsion x1, Utility x2 5130 | -7/Factory | Identified Scrap Engine 5890 | -7/Factory | Build established: Construct 6524 | -7/Factory | Discovered new exit (range 16) 6877 | -7/Factory | Identified exit to Lower Caves 7183 | -7/Factory | Entered Lower Caves 7380 | -7/Lower Caves | Found DCF Scrap (11 items) 7814 | -7/Lower Caves | Murdered Warlord Statue 7882 | -7/Lower Caves | Learned Factory terminal intel 7911 | -7/Lower Caves | Attracted the attention of an 0b10 outpost 8261 | -7/Lower Caves | Discovered new exit (range 5) 8630 | -7/Lower Caves | Lost 3 parts (2n1w) 8637 | -7/Lower Caves | Learned Factory trap positions 8792 | -7/Lower Caves | Entered another Lower Caves area 8849 | -7/Lower Caves | Lost 6 parts (2p1n1u2w) 8869 | -7/Lower Caves | Build established: Mutant 9639 | -7/Lower Caves | Discovered new exit (range 8) 10022 | -7/Lower Caves | Core integrity fell below 50% 10192 | -7/Lower Caves | Build established: Construct 10617 | -7/Lower Caves | Discovered new exit (range 5) 10843 | -7/Lower Caves | Entered Data Miner 10843 | -7/Data Miner | Discovered new exit (range 6) 10882 | -7/Data Miner | Met Data Miner 10922 | -7/Data Miner | Learned location of Section 7 (-2) 10922 | -7/Data Miner | Acquired the access code to Warlord's prototype stash 10955 | -7/Data Miner | Received God Mode back door access code from Data Miner 10999 | -7/Data Miner | Entered Proximity Caves 11704 | -6/Proximity Caves | Learned Factory garrison access intel 11947 | -6/Proximity Caves | Spotted B-75 Beast 11949 | -6/Proximity Caves | Escorted by Enhanced Grunt 11972 | -6/Proximity Caves | Core integrity fell below 20% 12005 | -6/Proximity Caves | Lost 6 parts (2p1n1u2w) 12086 | -6/Proximity Caves | Destroyed by B-75 Beast with Heavy Plasma Cannon Last Messages --------------- 11974_ Arm. Scrap Engine damaged due to network destabilization (-10). 11974_ Great Maul destroyed. 11984_ Acquired 1 matter. 11985_ Chain reaction triggered in Rnf. Deuterium Engine. 11988_ System corrupted: Energy discharge (-29). 11989_ Enhanced Grunt destroyed. 11996_ Knocked back. 11996_ Acquired 4 matter. 11999_ Cooling System blasted off. 12024_ AGFQ4KJJNXVWVLENJKMIS#= 12071_ Knocked back. 12071_ Hrd. Light Armor Plating destroyed. 12076_ System corrupted: Substantial component data lost. Map ----- +----------------------------------------------------+ | ???????????????????# #??????????????? | | ???????????????????# ##??????????????? | | ??????????????????## ##???????????????? | | ??????????????????# #####????????????????? | | ?????????????????## ##???????????????????? | | ?????????????????#% ## ##??????????????????? | | ?????????????????### ## #????? ??????????? | | ???????????????????# #????? ?????????? | | ??????????####?????# ## #???? #?????????? | | ?????????? %?????## #### ##??## #?????????? | | ?????????? %??????# #??## #??## ??######??? | | ??????????# ?????## #????###??? #?# ##?? | | ??????????# ?????# #?????###?? ## ##? | | ??????????# %%????## ##??### #?? | | ??????????# %#??###%% #### #### | | ??????????# #??# %;## | | ??????????# %#??# | | ??????????# %#### ### # % % | | ??????????# ## # #### BB ### %!! | | ??????????# ## %#?# BB###?# !!! | | ??????????# % #?## #???# =!! | | ??????????#% % #??# #???###% %% | | ??????????# #### ########### # | | ???####?### ###% #; #;###; ##??????? | | ???# ## ##?## %% =% ;; #??????? | | ???# ##### % ####@;; | | ???## % #??#### ### | | ????#### % % ##?????####?## ### | | ???????#### %% #####????????????#########???##### | | ??????????#######????????????????????????????????? | | ?????????????????????????????????????????????????? | | ?????????????????????????????????????????????????? | | ?????????????????????????????????????????????????? | | ?????????????????????????????????????????????????? | | ?????????????????????????????????????????????????? | | ?????????????????????????????????????????????????? | | ?????????????????????????????????????????????????? | | ?????????????????????????????????????????????????? | | ?????????????????????????????????????????????????? | | ?????????????????????????????????????????????????? | | ?????????????????????????????????????????????????? | | ?????????????????????????????????????????????????? | | ?????????????????????????????????????????????????? | | ?????????????????????????????????????????????????? | | ?????????????????????????????????????????????????? | | | | | | | | | | | +----------------------------------------------------+ Best States ------------- Heat Dissipation 56 Energy Generation 30 Energy Capacity 360 Matter Stores 300 Matter Capacity 300 Sight Range 16 Terrain Scan Density 10 Armor Coverage 225 Resistance: KI 30 Evasion (%) 57 Recoil Reduction 3 Salvage Targeting 4 Item Schematics ----------------- Hcp. Storage Unit | -9/Materials | Hacked Mak. Microdissipator Network | -7/Factory | Scanalyzed Combat Drone Bay | -7/Data Miner | Free Lgt. Regenerative Plating | -7/Data Miner | Free Cld. Cesium-ion Thruster | -7/Data Miner | Free Gravity Neutralizer | -7/Data Miner | Free Cld. Plasma Cannon | -7/Data Miner | Free Antigrav System | -7/Data Miner | Free Adv. Hacking Suite | -7/Data Miner | Free Hyp. Gauss Cannon | -7/Data Miner | Free Smartbomb Launcher | -7/Data Miner | Free Adv. Shield Generator | -7/Data Miner | Free Adv. Coolant Injector | -7/Data Miner | Free Robot Schematics ------------------ Y-54 Guardian | -7/Data Miner | Free G-50 Soldier | -7/Data Miner | Free S-27 Virus | -7/Data Miner | Free B-48 Gladiator | -7/Data Miner | Free L-41 Fighter | -7/Data Miner | Free R-10 Processor | -7/Data Miner | Free Fabricated ------------ Nothing Alien Tech Used ----------------- None Achievements -------------- None Challenges ------------ None Game ------ Seed EtherialMagneticExtrapolator Manual? 0 Play Time 01:24:58 Cumulative 132.8 hours Start 2025.03.04 @ 12:29:24 End 2025.03.04 @ 17:04:10 Sessions 5 Manual Loads 0 Difficulty Rogue Special Mode None Game No. 77 Rogue 77 Adventurer 0 Explorer 0 Win Type - Total 3 Types 3/0/0/0/0/0/0/0/0 Lore% 56 Gallery% 67 Achievement% 55 Wizard Run 0 Options --------- Layout 0 ASCII 1 Keyboard 1 Movement Numpad Keybinds 0 Fullscreen 2 Font 20/Terminus Map View 66x50 Zoom Use 0% Tactical HUD 1 Map Filters NONE Filters NONE Steam 1 RUN: 3cbf80f4-ca57-4e9f-8b58-f3863c00cd5a